bitfinex/quotes_SOLUSD_20241107
["timestamp","ask_amount","ask_price","bid_price","bid_amount"]
[1730997664572,1.5870755,193.7,193.48,43.776884]
[1730997664573,23.776884,193.67,193.48,43.776884]
[1730997664876,0.12549,193.66,193.48,43.776884]
[1730997665071,1.5870755,193.7,193.48,43.776884]
[1730997665877,0.12549,193.69,193.48,43.776884]
[1730997666481,1.5870755,193.7,193.48,43.776884]
[1730997666694,20.0,193.68,193.48,43.776884]
[1730997666883,23.902374,193.67,193.48,43.776884]
[1730997668683,1.5870755,193.7,193.48,43.876884]
[1730997668869,1.5870755,193.7,193.49,8.09246029]
[1730997669068,1.5870755,193.7,193.5,43.776884]
[1730997669363,1.5870755,193.7,193.5,45.843002]
[1730997669773,1.5870755,193.7,193.5,53.93546229]
[1730997669974,23.902374,193.69,193.5,53.93546229]
[1730997670489,23.902374,193.69,193.5,45.843002]
[1730997671066,1.5870755,193.7,193.52,0.1]
[1730997671271,1.5870755,193.7,193.51,0.2]
[1730997672381,1.5870755,193.7,193.52,43.776884]
[1730997673485,23.902374,193.69,193.52,43.776884]
[1730997673987,1.5870755,193.7,193.52,43.776884]
[1730997674569,1.5870755,193.7,193.52,52.39331831]
[1730997674870,1.5870755,193.7,193.52,32.29331831]
[1730997676691,1.5870755,193.7,193.53,20.1]
[1730997676900,1.5870755,193.7,193.55,20.0]
[1730997677069,1.5870755,193.7,193.58,23.776884]
[1730997677269,1.5870755,193.7,193.59,20.0]
[1730997679573,1.5870755,193.7,193.58,23.776884]
[1730997679879,1.5870755,193.7,193.57,23.776884]
[1730997683178,1.5870755,193.7,193.58,2.065548]
[1730997683377,1.5870755,193.7,193.58,9.66370687]
[1730997683874,1.5870755,193.7,193.59,23.776884]
[1730997684084,1.5870755,193.7,193.59,31.37504287]
[1730997684376,1.5870755,193.7,193.6,7.59815887]
[1730997684769,1.5870755,193.7,193.61,23.776884]
[1730997684972,1.5870755,193.7,193.61,31.37504287]
[1730997685393,1.5870755,193.7,193.62,7.59815887]
[1730997686172,1.5870755,193.7,193.61,23.776884]
[1730997687081,1.5870755,193.7,193.59,1.31653762]
[1730997687293,1.5870755,193.7,193.59,23.776884]
[1730997687482,1.5870755,193.7,193.6,0.12549]
[1730997687995,1.5870755,193.7,193.59,23.776884]
[1730997688580,1.5870755,193.7,193.59,31.63504287]
[1730997688894,1.5870755,193.7,193.6,0.12549]
[1730997689277,1.5870755,193.7,193.59,23.776884]
[1730997689889,1.5870755,193.7,193.6,0.12549]
[1730997691288,1.5870755,193.7,193.6,20.12549]
[1730997691506,1.5870755,193.7,193.61,23.776884]
[1730997691800,1.5870755,193.7,193.6,20.12549]
[1730997692003,1.5870755,193.7,193.6,0.12549]
[1730997692589,1.5870755,193.7,193.58,3.34126092]
[1730997693385,1.5870755,193.7,193.52,8.51643431]
[1730997693586,1.5870755,193.7,193.53,23.776884]
[1730997693790,1.5870755,193.7,193.54,0.12549]
[1730997695212,1.5870755,193.7,193.54,20.12549]
[1730997696004,1.5870755,193.7,193.55,23.776884]
[1730997696210,1.5870755,193.7,193.56,20.0]
[1730997696508,1.5870755,193.7,193.57,23.776884]
[1730997696888,1.5870755,193.7,193.59,23.776884]
[1730997697089,1.5870755,193.7,193.57,23.776884]
[1730997697392,23.902374,193.76,193.57,23.776884]
[1730997697708,0.12549,193.75,193.7,15.98066702]
[1730997698510,39.75755102,193.76,193.7,15.98066702]
[1730997698694,39.75755102,193.76,193.71,15.98066702]
[1730997698695,23.776884,193.76,193.71,15.98066702]
[1730997699096,23.776884,193.76,193.7,15.98066702]
[1730997699097,39.75755102,193.76,193.7,15.98066702]
[1730997699296,15.98066702,193.75,193.69,15.98066702]
[1730997699607,20.0,193.74,193.69,15.98066702]
[1730997700008,15.98066702,193.74,193.68,15.98066702]
[1730997700186,43.776884,193.73,193.67,15.98066702]
[1730997700506,43.776884,193.73,193.68,15.98066702]
[1730997701794,2.20883716,193.77,193.72,15.98066702]
[1730997701795,0.89028207,193.77,193.72,15.98066702]
[1730997702115,0.89028207,193.77,193.73,15.98066702]
[1730997702493,0.89028207,193.77,193.56,1.31971636]
[1730997702494,15.98066702,193.74,193.56,1.31971636]
[1730997702807,15.98066702,193.73,193.67,15.98066702]
[1730997703114,20.12549,193.73,193.67,15.98066702]
[1730997703298,15.98066702,193.73,193.67,15.98066702]
[1730997703503,20.0,193.73,193.68,15.98066702]
[1730997704091,23.902374,193.72,193.55,20.0]
[1730997704299,23.902374,193.72,193.67,15.98066702]
[1730997705210,35.98066702,193.73,193.67,15.98066702]
[1730997705403,23.776884,193.72,193.67,15.98066702]
[1730997705912,0.12549,193.71,193.68,15.98066702]
[1730997706094,0.12549,193.71,193.66,15.98066702]
[1730997706295,0.12549,193.69,193.64,15.98066702]
[1730997706500,23.776884,193.68,193.63,15.98066702]
[1730997706793,23.776884,193.68,193.62,15.98066702]
[1730997707228,39.75755102,193.68,193.61,15.98066702]
[1730997707410,23.776884,193.66,193.61,15.98066702]
[1730997707714,23.776884,193.67,193.61,15.98066702]
[1730997708495,23.776884,193.67,193.51,6.0331]
[1730997708496,23.776884,193.65,193.51,6.0331]
[1730997709013,23.776884,193.66,193.63,15.98066702]
[1730997709220,23.776884,193.66,193.62,15.98066702]
[1730997709397,23.776884,193.66,193.61,15.98066702]
[1730997709592,20.0,193.65,193.6,15.98066702]
[1730997710401,23.776884,193.66,193.61,15.98066702]
[1730997711118,23.776884,193.66,193.62,15.98066702]
[1730997711518,6.4635,193.67,193.62,15.98066702]
[1730997711711,23.776884,193.67,193.63,15.98066702]
[1730997712231,23.776884,193.67,193.62,15.98066702]
[1730997713713,23.776884,193.67,193.61,15.98066702]
[1730997713919,23.776884,193.67,193.62,15.98066702]
[1730997714222,23.776884,193.67,193.51,6.0331]
[1730997714223,23.776884,193.67,193.63,15.98066702]
[1730997714797,20.0,193.69,193.63,15.98066702]
[1730997715201,23.776884,193.68,193.63,15.98066702]
[1730997715397,20.0,193.69,193.64,15.98066702]
[1730997715609,15.98066702,193.72,193.66,15.98066702]
[1730997715813,15.98066702,193.72,193.65,15.98066702]
[1730997716015,15.98066702,193.71,193.64,15.98066702]
[1730997716595,15.98066702,193.71,193.65,15.98066702]
[1730997717493,15.98066702,193.71,193.6,15.98066702]
[1730997717494,6.0905,193.73,193.67,15.98066702]
[1730997717709,6.0905,193.73,193.68,15.98066702]
[1730997719118,20.0,193.72,193.68,15.98066702]
[1730997719303,20.0,193.72,193.67,15.98066702]
[1730997719803,20.0,193.72,193.66,15.98066702]
[1730997720004,20.0,193.72,193.67,15.98066702]
[1730997720200,35.98066702,193.72,193.55,23.776884]
[1730997720406,15.98066702,193.71,193.55,23.776884]
[1730997720621,39.88304102,193.7,193.64,15.98066702]
[1730997721700,15.98066702,193.68,193.61,15.98066702]
[1730997721896,20.0,193.67,193.61,15.98066702]
[1730997722110,35.98066702,193.67,193.61,15.98066702]
[1730997722502,43.776884,193.67,193.62,15.98066702]
[1730997722904,43.776884,193.67,193.61,15.98066702]
[1730997723723,23.776884,193.67,193.61,15.98066702]
[1730997724104,23.776884,193.67,193.62,15.98066702]
[1730997724503,6.0905,193.73,193.66,15.98066702]
[1730997724703,17.26691014,193.76,193.69,15.98066702]
[1730997724906,15.98066702,193.76,193.69,15.98066702]
[1730997725227,15.98066702,193.75,193.68,15.98066702]
[1730997725609,15.98066702,193.74,193.67,15.98066702]
[1730997726125,20.0,193.73,193.67,15.98066702]
[1730997726534,39.75755102,193.71,193.65,15.98066702]
[1730997726828,15.48066702,193.7,193.64,15.98066702]
[1730997727234,15.48066702,193.7,193.57,16.2466]
[1730997727235,39.75755102,193.71,193.65,15.98066702]
[1730997727420,23.776884,193.71,193.65,15.98066702]
[1730997727730,23.776884,193.71,193.67,15.98066702]
[1730997728232,23.776884,193.71,193.66,15.98066702]
[1730997728428,20.0,193.72,193.66,15.98066702]
[1730997728612,20.12549,193.73,193.67,15.98066702]
[1730997728812,23.776884,193.72,193.67,15.98066702]
[1730997730331,0.1,193.82,193.7,15.98066702]
[1730997730531,15.98066702,193.76,193.7,15.98066702]
[1730997730827,16.4085,193.83,193.72,15.98066702]
[1730997731027,16.4085,193.83,193.63,6.6664]
[1730997731028,1.30191025,193.82,193.73,15.98066702]
[1730997731329,15.98066702,193.81,193.74,15.98066702]
[1730997731738,15.98066702,193.79,193.69,15.1881]
[1730997732041,15.98066702,193.8,193.74,15.98066702]
[1730997732406,15.98066702,193.81,193.75,15.98066702]
[1730997732812,15.98066702,193.82,193.76,15.98066702]
[1730997733046,15.98066702,193.8,193.74,15.98066702]
[1730997733420,15.98066702,193.79,193.73,15.98066702]
[1730997733620,15.98066702,193.8,193.74,15.98066702]
[1730997735115,15.98066702,193.81,193.75,15.98066702]
[1730997735636,15.98066702,193.79,193.73,15.98066702]
[1730997736435,15.98066702,193.8,193.74,15.98066702]
[1730997736845,15.98066702,193.8,193.73,15.98066702]
[1730997737020,16.10615702,193.78,193.72,15.98066702]
[1730997737219,15.98066702,193.81,193.74,15.98066702]
[1730997737538,39.75755102,193.81,193.75,15.98066702]
[1730997738040,15.98066702,193.8,193.74,15.98066702]
[1730997739132,23.776884,193.81,193.75,15.98066702]
[1730997739320,15.98066702,193.8,193.74,15.98066702]
[1730997739724,39.75755102,193.81,193.75,15.98066702]
[1730997740032,15.98066702,193.8,193.73,15.98066702]
[1730997740337,39.75755102,193.81,193.75,15.98066702]
[1730997740835,23.776884,193.81,193.76,15.98066702]
[1730997741414,15.98066702,193.82,193.76,15.98066702]
[1730997741621,15.98066702,193.82,193.7,15.98066702]
[1730997741622,15.98066702,193.84,193.78,15.98066702]
[1730997741818,15.98066702,193.84,193.7,15.98066702]
[1730997741819,15.98066702,193.84,193.77,15.98066702]
[1730997742025,10.74372821,193.88,193.69,15.1881]
[1730997742026,15.98066702,193.78,193.69,15.1881]
[1730997742227,15.98066702,193.79,193.69,15.1881]
[1730997742416,0.12549,193.8,193.74,15.98066702]
[1730997742945,23.902374,193.8,193.74,15.98066702]
[1730997743126,23.776884,193.8,193.74,15.98066702]
[1730997743332,15.98066702,193.81,193.75,15.98066702]
[1730997743649,23.776884,193.82,193.76,15.98066702]
[1730997743943,23.776884,193.82,193.77,15.98066702]
[1730997744148,15.98066702,193.84,193.77,15.98066702]
[1730997745127,16.10615702,193.83,193.77,15.98066702]
[1730997745333,15.98066702,193.78,193.64,16.6176]
[1730997745528,0.12549,193.76,193.72,15.98066702]
[1730997745722,23.776884,193.77,193.72,15.98066702]
[1730997745930,15.98066702,193.8,193.74,15.98066702]
[1730997746329,23.776884,193.79,193.74,15.98066702]
[1730997747129,23.776884,193.79,193.73,15.98066702]
[1730997747330,23.776884,193.79,193.74,15.98066702]
[1730997748030,0.12549,193.76,193.64,16.6176]
[1730997748230,0.12549,193.76,193.71,15.98066702]
[1730997749232,0.12549,193.76,193.7,15.98066702]
[1730997749530,0.12549,193.76,193.71,15.98066702]
[1730997750033,0.12549,193.74,193.68,15.98066702]
[1730997750246,0.12549,193.74,193.7,15.98066702]
[1730997752444,23.776884,193.75,193.71,15.98066702]
[1730997752653,23.776884,193.77,193.72,15.98066702]
[1730997753144,23.776884,193.75,193.71,15.98066702]
[1730997753450,23.776884,193.75,193.7,15.98066702]
[1730997754225,20.0,193.76,193.7,15.98066702]
[1730997754538,20.0,193.76,193.71,15.98066702]
[1730997754740,23.776884,193.76,193.71,15.98066702]
[1730997754945,23.776884,193.76,193.72,15.98066702]
[1730997755144,23.776884,193.78,193.73,15.98066702]
[1730997755347,23.776884,193.79,193.74,15.98066702]
[1730997755735,23.776884,193.79,193.73,15.98066702]
[1730997755941,39.75755102,193.79,193.73,15.98066702]
[1730997756453,15.98066702,193.8,193.64,16.6176]
[1730997756633,15.98066702,193.84,193.78,15.98066702]
[1730997756829,15.98066702,193.83,193.78,15.98066702]
[1730997757050,15.98066702,193.83,193.77,15.98066702]
[1730997758156,15.98066702,193.82,193.76,15.98066702]
[1730997758335,15.98066702,193.84,193.78,15.98066702]
[1730997758538,39.75755102,193.83,193.77,15.98066702]
[1730997759544,15.98066702,193.83,193.77,15.98066702]
[1730997759750,15.98066702,193.82,193.76,15.98066702]
[1730997760655,15.98066702,193.83,193.77,15.98066702]
[1730997760845,23.776884,193.82,193.77,15.98066702]
[1730997761053,39.75755102,193.82,193.76,15.98066702]
[1730997761660,15.98066702,193.8,193.74,15.98066702]
[1730997761858,39.75755102,193.79,193.73,15.98066702]
[1730997762156,22.776884,193.79,193.74,15.98066702]
[1730997764141,22.776884,193.79,193.73,15.98066702]
[1730997764657,0.12549,193.78,193.73,15.98066702]
[1730997764853,38.75755102,193.79,193.73,15.98066702]
[1730997765060,15.98066702,193.78,193.72,15.98066702]
[1730997765253,39.88304102,193.77,193.7,15.98066702]
[1730997765653,39.88304102,193.77,193.64,16.6176]
[1730997765654,23.902374,193.75,193.64,16.6176]
[1730997765853,39.88304102,193.73,193.67,15.98066702]
[1730997766241,23.902374,193.73,193.67,15.98066702]
[1730997766562,23.902374,193.73,193.68,15.98066702]
[1730997767146,23.902374,193.73,193.67,15.98066702]
[1730997767341,23.902374,193.71,193.66,15.98066702]
[1730997767736,23.776884,193.72,193.66,15.98066702]
[1730997767954,23.776884,193.73,193.67,15.98066702]
[1730997768461,0.12549,193.72,193.67,15.98066702]
[1730997768863,0.12549,193.72,193.55,16.6161]
[1730997768864,23.902374,193.67,193.55,16.6161]
[1730997769157,23.776884,193.76,193.66,15.98066702]
[1730997769358,0.12549,193.73,193.68,15.98066702]
[1730997769563,16.10615702,193.73,193.67,15.98066702]
[1730997769740,0.12549,193.71,193.66,15.98066702]
[1730997769945,0.12549,193.71,193.6,15.98066702]
[1730997770361,0.12549,193.71,193.55,16.6161]
[1730997770946,0.12549,193.71,193.66,15.98066702]
[1730997771448,0.12549,193.71,193.66,14.53366082]
[1730997772148,15.98066702,193.76,193.7,15.98066702]
[1730997772763,15.98066702,193.76,193.6,15.98066702]
[1730997772764,15.98066702,193.76,193.69,15.98066702]
[1730997772963,15.98066702,193.76,193.7,15.98066702]
[1730997773258,15.98066702,193.77,193.7,15.98066702]
[1730997773838,23.776884,193.76,193.7,15.98066702]
[1730997774257,23.776884,193.76,193.71,15.98066702]
[1730997775057,23.776884,193.76,193.65,16.2715]
[1730997775058,15.98066702,193.79,193.73,15.98066702]
[1730997775261,15.98066702,193.8,193.74,15.98066702]
[1730997775472,15.98066702,193.79,193.73,15.98066702]
[1730997775653,15.98066702,193.79,193.72,15.98066702]
[1730997775971,15.98066702,193.78,193.72,15.98066702]
[1730997776464,0.12549,193.78,193.72,15.98066702]
[1730997776651,23.902374,193.78,193.72,15.98066702]
[1730997777045,23.902374,193.78,193.73,15.98066702]
[1730997778852,23.902374,193.78,193.72,15.98066702]
[1730997779164,15.98066702,193.79,193.65,16.2715]
[1730997779371,15.98066702,193.79,193.73,15.98066702]
[1730997779977,15.98066702,193.78,193.72,15.98066702]
[1730997780354,15.98066702,193.77,193.71,15.98066702]
[1730997781471,23.902374,193.74,193.65,16.2715]
[1730997781852,39.88304102,193.74,193.68,15.98066702]
[1730997782070,39.88304102,193.74,193.67,15.98066702]
[1730997782249,39.88304102,193.72,193.66,15.98066702]
[1730997782458,23.776884,193.71,193.65,15.98066702]
[1730997782769,39.88304102,193.72,193.65,15.98066702]
[1730997782949,39.88304102,193.72,193.66,15.98066702]
[1730997783453,39.88304102,193.72,193.6,31.74886702]
[1730997783454,23.902374,193.72,193.67,10.22928099]
[1730997783653,23.776884,193.73,193.68,10.22928099]
[1730997783866,40.91712396,193.8,193.68,10.22928099]
[1730997783867,23.902374,193.79,193.68,10.22928099]
[1730997784177,23.776884,193.73,193.68,10.22928099]
[1730997785248,34.13165499,193.74,193.68,10.22928099]
[1730997785479,10.22928099,193.75,193.68,10.22928099]
[1730997785847,10.22928099,193.76,193.7,10.22928099]
[1730997786052,10.22928099,193.78,193.72,10.22928099]
[1730997786860,10.22928099,193.78,193.61,20.12549]
[1730997787055,6.5683,193.83,193.61,20.12549]
[1730997787056,10.22928099,193.76,193.7,10.22928099]
[1730997787377,10.22928099,193.76,193.61,20.0]
[1730997787378,10.22928099,193.75,193.69,10.22928099]
[1730997788569,23.776884,193.73,193.61,20.0]
[1730997788771,23.776884,193.73,193.68,10.22928099]
[1730997789471,10.22928099,193.75,193.69,10.22928099]
[1730997789769,23.776884,193.74,193.69,10.22928099]
[1730997789987,23.776884,193.74,193.68,10.22928099]
[1730997790272,34.00616499,193.74,193.67,10.22928099]
[1730997790576,10.22928099,193.73,193.67,10.22928099]
[1730997790774,23.776884,193.72,193.61,20.0]
[1730997790956,34.00616499,193.72,193.65,10.22928099]
[1730997791156,10.22928099,193.75,193.68,10.22928099]
[1730997791356,0.12549,193.74,193.68,10.22928099]
[1730997791676,23.902374,193.74,193.68,10.22928099]
[1730997792974,10.22928099,193.73,193.66,10.22928099]
[1730997793186,10.22928099,193.73,193.6,56.68532396]
[1730997793187,34.13165499,193.74,193.67,10.22928099]
[1730997793357,34.13165499,193.74,193.61,20.0]
[1730997793678,23.776884,193.74,193.69,10.22928099]
[1730997794761,23.902374,193.75,193.7,10.22928099]
[1730997794977,23.902374,193.75,193.69,10.22928099]
[1730997795282,23.902374,193.75,193.7,10.22928099]
[1730997795883,23.902374,193.75,193.69,10.22928099]
[1730997796782,34.13165499,193.75,193.68,10.22928099]
[1730997797581,23.902374,193.75,193.61,20.0]
[1730997797767,34.13165499,193.75,193.68,10.22928099]
[1730997798270,23.776884,193.75,193.69,10.22928099]
[1730997798791,23.776884,193.75,193.7,10.22928099]
[1730997798991,23.902374,193.76,193.61,20.0]
[1730997799177,34.13165499,193.76,193.69,10.22928099]
[1730997799691,20.0,193.82,193.61,20.0]
[1730997799692,10.22928099,193.75,193.61,20.0]
[1730997799867,10.22928099,193.76,193.69,10.22928099]
[1730997800066,0.12549,193.79,193.61,20.0]
[1730997800067,10.22928099,193.75,193.61,20.0]
[1730997800296,10.22928099,193.75,193.68,10.22928099]
[1730997800672,23.776884,193.74,193.68,10.22928099]
[1730997800992,34.00616499,193.72,193.65,10.22928099]
[1730997801200,23.776884,193.72,193.66,10.22928099]
[1730997801877,23.776884,193.72,193.67,10.22928099]
[1730997802083,10.22928099,193.75,193.69,10.22928099]
[1730997802287,23.776884,193.74,193.69,10.22928099]
[1730997802687,1.31162693,193.82,193.71,10.22928099]
[1730997802876,23.776884,193.76,193.71,10.22928099]
[1730997803190,23.776884,193.76,193.7,10.22928099]
[1730997803371,34.00616499,193.76,193.61,0.1]
[1730997803570,23.776884,193.76,193.7,10.22928099]
[1730997805081,34.00616499,193.76,193.7,10.22928099]
[1730997805684,34.00616499,193.76,193.61,20.1]
[1730997806000,34.00616499,193.76,193.7,10.22928099]
[1730997806403,20.0,193.82,193.7,10.22928099]
[1730997806698,10.22928099,193.77,193.71,10.22928099]
[1730997806886,0.12549,193.78,193.71,10.22928099]
[1730997807080,10.22928099,193.77,193.65,20.0]
[1730997807301,10.22928099,193.76,193.7,10.22928099]
[1730997808696,10.22928099,193.77,193.7,10.22928099]
[1730997809681,10.22928099,193.77,193.65,20.0]
[1730997809986,10.22928099,193.77,193.7,10.22928099]
[1730997810786,0.12549,193.78,193.61,20.0]
[1730997810787,10.22928099,193.75,193.61,20.0]
[1730997810980,10.22928099,193.75,193.69,10.22928099]
[1730997811180,23.776884,193.75,193.7,10.22928099]
[1730997811675,34.00616499,193.75,193.6,56.68532396]
[1730997811876,34.00616499,193.75,193.68,10.22928099]
[1730997812999,34.00616499,193.75,193.62,20.652432]
[1730997813180,34.00616499,193.75,193.69,10.22928099]
[1730997813376,23.776884,193.75,193.63,20.0]
[1730997813689,34.00616499,193.75,193.69,10.22928099]
[1730997813894,20.0,193.82,193.7,10.22928099]
[1730997814083,10.22928099,193.76,193.7,10.22928099]
[1730997815594,10.22928099,193.77,193.7,10.22928099]
[1730997815994,0.12549,193.79,193.7,10.22928099]
[1730997816180,10.22928099,193.77,193.7,10.22928099]
[1730997816695,10.22928099,193.77,193.71,10.22928099]
[1730997816889,23.902374,193.79,193.71,10.22928099]
[1730997817077,10.22928099,193.77,193.7,10.22928099]
[1730997819382,34.00616499,193.76,193.63,20.0]
[1730997819589,34.00616499,193.76,193.7,10.22928099]
[1730997821182,10.22928099,193.75,193.63,20.0]
[1730997821402,10.22928099,193.74,193.68,10.22928099]
[1730997821881,10.22928099,193.75,193.68,10.22928099]
[1730997822402,34.00616499,193.76,193.69,10.22928099]
[1730997822607,10.22928099,193.76,193.7,10.22928099]
[1730997822903,10.22928099,193.75,193.68,10.22928099]
[1730997823284,1.25,193.77,193.63,20.0]
[1730997823285,10.22928099,193.74,193.63,20.0]
[1730997823485,10.22928099,193.74,193.68,10.22928099]
[1730997824197,10.22928099,193.74,193.67,10.22928099]
[1730997824686,10.22928099,193.72,193.65,10.22928099]
[1730997824885,23.902374,193.76,193.68,10.22928099]
[1730997825096,10.22928099,193.74,193.62,20.654372]
[1730997825404,10.22928099,193.74,193.68,10.22928099]
[1730997826189,10.22928099,193.74,193.62,20.654372]
[1730997826385,10.22928099,193.73,193.67,10.22928099]
[1730997827392,10.22928099,193.73,193.66,10.22928099]
[1730997827596,10.22928099,193.73,193.67,10.22928099]
[1730997828007,23.902374,193.76,193.68,10.22928099]
[1730997828298,10.22928099,193.74,193.67,10.22928099]
[1730997828506,10.22928099,193.74,193.68,10.22928099]
[1730997829507,1.25,193.77,193.69,10.22928099]
[1730997829710,10.22928099,193.76,193.69,10.22928099]
[1730997830406,10.22928099,193.75,193.69,10.22928099]
[1730997830595,10.22928099,193.75,193.68,10.22928099]
[1730997830802,23.776884,193.74,193.68,10.22928099]
[1730997831695,1.25,193.77,193.68,10.22928099]
[1730997831899,1.25,193.77,193.62,20.654372]
[1730997831900,10.22928099,193.75,193.69,10.22928099]
[1730997832399,23.776884,193.74,193.68,10.22928099]
[1730997833400,34.00616499,193.74,193.67,10.22928099]
[1730997833601,10.22928099,193.73,193.66,10.22928099]
[1730997833811,10.22928099,193.71,193.64,10.22928099]
[1730997834313,23.776884,193.7,193.61,20.0]
[1730997834500,23.776884,193.7,193.64,10.22928099]
[1730997835206,23.776884,193.71,193.65,10.22928099]
[1730997836101,34.00616499,193.71,193.64,10.22928099]
[1730997836294,20.0,193.7,193.51,15.3124]
[1730997836504,20.0,193.7,193.59,10.22928099]
[1730997836505,10.22928099,193.66,193.59,10.22928099]
[1730997836695,10.22928099,193.66,193.53,20.0]
[1730997836895,10.22928099,193.66,193.59,10.22928099]
[1730997837109,10.22928099,193.66,193.6,10.22928099]
[1730997837592,10.22928099,193.65,193.54,20.0]
[1730997837795,23.776884,193.69,193.62,10.22928099]
[1730997838002,23.776884,193.69,193.64,10.22928099]
[1730997838214,23.776884,193.7,193.64,10.22928099]
[1730997838510,34.00616499,193.7,193.64,10.22928099]
[1730997839412,23.776884,193.7,193.64,10.22928099]
[1730997839914,34.00616499,193.7,193.64,10.22928099]
[1730997841597,23.776884,193.7,193.64,10.22928099]
[1730997841922,10.22928099,193.71,193.64,10.22928099]
[1730997842215,10.22928099,193.71,193.65,10.22928099]
[1730997842390,1.31454578,193.71,193.65,10.22928099]
[1730997842596,10.22928099,193.73,193.67,10.22928099]
[1730997842797,0.12549,193.73,193.68,10.22928099]
[1730997842992,0.12549,193.73,193.6,56.02262396]
[1730997843214,0.12549,193.71,193.61,20.0]
[1730997843416,0.12549,193.71,193.66,10.22928099]
[1730997843808,10.22928099,193.71,193.61,20.0]
[1730997844010,10.22928099,193.71,193.65,10.22928099]
[1730997844598,23.902374,193.7,193.61,20.0]
[1730997844826,23.902374,193.7,193.65,10.22928099]
[1730997845119,23.902374,193.7,193.64,10.22928099]
[1730997845525,23.902374,193.7,193.65,10.22928099]
[1730997847010,6.4273,193.74,193.65,10.22928099]
[1730997847011,10.22928099,193.72,193.65,10.22928099]
[1730997847215,6.4273,193.74,193.69,10.22928099]
[1730997847621,10.22928099,193.76,193.69,10.22928099]
[1730997847919,10.22928099,193.75,193.69,10.22928099]
[1730997848123,10.22928099,193.74,193.68,10.22928099]
[1730997848927,10.22928099,193.74,193.61,20.0]
[1730997849224,10.22928099,193.74,193.67,10.22928099]
[1730997849813,23.776884,193.73,193.67,10.22928099]
[1730997850430,0.12549,193.72,193.61,20.0]
[1730997850611,10.35477099,193.72,193.61,20.0]
[1730997850812,23.776884,193.71,193.66,10.22928099]
[1730997851716,23.902374,193.72,193.66,10.22928099]
[1730997852417,23.902374,193.72,193.67,10.22928099]
[1730997853520,34.13165499,193.72,193.66,10.22928099]
[1730997854025,23.902374,193.72,193.66,10.22928099]
[1730997855830,34.13165499,193.72,193.61,20.0]
[1730997856034,34.13165499,193.72,193.66,10.22928099]
[1730997856244,34.13165499,193.72,193.65,10.22928099]
[1730997856533,1.31163344,193.76,193.61,20.0]
[1730997856534,1.31163344,193.76,193.68,10.22928099]
[1730997856717,10.22928099,193.75,193.68,10.22928099]
[1730997856917,0.12549,193.75,193.68,10.22928099]
[1730997857223,10.22928099,193.74,193.68,10.22928099]
[1730997857418,21.25,193.77,193.68,10.22928099]
[1730997857624,10.22928099,193.75,193.68,10.22928099]
[1730997858734,23.776884,193.74,193.68,10.22928099]
[1730997859427,23.776884,193.74,193.61,20.0]
[1730997859428,21.25,193.77,193.69,10.22928099]
[1730997859636,21.25,193.77,193.7,10.22928099]
[1730997859818,10.22928099,193.76,193.7,10.22928099]
[1730997860223,1.25,193.77,193.72,10.22928099]
[1730997861622,11.47928099,193.77,193.72,10.22928099]
[1730997862125,11.47928099,193.77,193.71,10.22928099]
[1730997862337,11.47928099,193.77,193.7,10.22928099]
[1730997862338,10.22928099,193.76,193.7,10.22928099]
[1730997864061,23.776884,193.75,193.7,10.22928099]
[1730997864349,34.00616499,193.75,193.69,10.22928099]
[1730997864655,34.00616499,193.75,193.68,10.22928099]
[1730997865521,34.00616499,193.75,193.69,10.22928099]
[1730997866141,1.25,193.77,193.71,10.22928099]
[1730997866343,23.776884,193.76,193.71,10.22928099]
[1730997867029,34.00616499,193.76,193.7,10.22928099]
[1730997868232,23.776884,193.76,193.7,10.22928099]
[1730997868521,23.776884,193.76,193.63,0.1]
[1730997868736,34.00616499,193.76,193.63,0.1]
[1730997869025,23.776884,193.76,193.7,10.22928099]
[1730997869635,23.776884,193.76,193.63,0.1]
[1730997869840,1.25,193.77,193.7,10.22928099]
[1730997870033,11.47928099,193.77,193.71,10.22928099]
[1730997871726,1.25,193.77,193.72,10.22928099]
[1730997871933,1.25,193.77,193.74,10.22928099]
[1730997872730,1.25,193.77,193.75,10.22928099]
[1730997872938,1.25,193.77,193.69,15.8152]
[1730997873249,1.25,193.77,193.75,10.22928099]
[1730997873645,1.25,193.77,193.69,15.8152]
[1730997873834,1.25,193.77,193.75,10.22928099]
[1730997874153,1.25,193.77,193.76,10.22928099]
[1730997874653,1.25,193.77,193.75,10.22928099]
[1730997874825,1.25,193.77,193.76,10.22928099]
[1730997876237,1.25,193.77,193.76,30.22928099]